fUST/lending_fUST_20260109
["ID","MTS","AMOUNT","RATE_DAILY","PERIOD"]
[401085996,1767912648176,-151.0,0.000277,7]
[401085997,1767912648185,-151.251356,0.000277,7]
[401085998,1767912648194,-153.910919,0.000277,7]
[401085999,1767912648203,-151.0,0.000277,7]
[401086000,1767912648213,-334.5472959,0.00027725,2]
[401086001,1767912648222,-1549.0,0.00027726,7]
[401086002,1767912648231,-210.0,0.00027726,26]
[401086003,1767912648241,-151.0,0.00027727,2]
[401086004,1767912648253,-2773.56790519,0.00027727,2]
[401086005,1767912648262,-574.12855637,0.00027727,2]
[401086006,1767912648271,-24784.64670076,0.00027727,2]
[401086007,1767912648286,-1549.0,0.00027748,2]
[401086008,1767912648295,-1000.0,0.00027777,5]
[401086009,1767912648305,-1041.66666667,0.000278,30]
[401086010,1767912648315,-1549.0,0.0002782,7]
[401086011,1767912648325,-2566.24195812,0.0002785,2]
[401086012,1767912648335,-800.0,0.00027899,2]
[401086013,1767912648344,-900.0,0.0002791,7]
[401086014,1767912648353,-554.95289818,0.00027913,18]
[401086015,1767912648363,-200.0,0.00027944,10]
[401086016,1767912648372,-427.51723965,0.00027945,5]
[401086017,1767912648381,-1831.24692288,0.00027945,5]
[401086018,1767912648391,-1710.06895861,0.00027945,5]
[401086019,1767912648401,-3847.65515688,0.00027945,5]
[401086020,1767912648410,-6833.43555862,0.00027945,5]
[401086021,1767912648418,-7317.66270382,0.00027945,5]
[401086022,1767912648430,-151.0,0.00027945,7]
[401086023,1767912648439,-310.474251,0.00027945,7]
[401086024,1767912648448,-218.447401,0.00027945,7]
[401086025,1767912648458,-218.447401,0.00027945,7]
[401086026,1767912648466,-310.474251,0.00027945,7]
[401086027,1767912648476,-218.447401,0.00027945,7]
[401086028,1767912648484,-310.474251,0.00027945,7]
[401086029,1767912648494,-218.447404,0.00027945,7]
[401086030,1767912648502,-310.474246,0.00027945,7]
[401086031,1767912648511,-151.0,0.00027945,7]
[401086032,1767912648520,-151.0,0.00027945,7]
[401086033,1767912648530,-1000.0,0.00027945,5]
[401086034,1767912648540,-600.0,0.00027945,5]
[401086035,1767912648550,-750.0,0.00027945,5]
[401086036,1767912648560,-250.0,0.00027945,5]
[401086037,1767912648569,-250.0,0.00027945,5]
[401086038,1767912648579,-800.0,0.0002797,2]
[401086039,1767912648589,-800.0,0.00027989,2]
[401086040,1767912648598,-200.0,0.00027997,10]
[401086041,1767912648607,-94423.47496855,0.00027998,2]
[401086042,1767912648734,-1997.99554256,0.00027998,2]
[401086043,1767912648747,-435.0,0.00027998,2]
[401086044,1767912648758,-6334.6164861,0.00027998,2]
[401086045,1767912648771,-9850.7026587,0.00027998,2]
[401086046,1767912648910,-297.11783479,0.00012396,2]
[401086047,1767912648921,-617.75813813,0.00012396,2]
[401086048,1767912648932,-1600.95540066,0.00012396,2]
[401086086,1767912718357,475.0,0.00028188,120]
[401086087,1767912719478,475.0,0.00028188,120]
[401086088,1767912719764,475.0,0.00028188,120]
[401086089,1767912720049,475.0,0.00028188,120]
[401086090,1767912721410,475.0,0.00028188,120]
[401086091,1767912721606,475.0,0.00028188,120]
[401086092,1767912775091,174.4,7.058e-05,2]
[401086093,1767912775482,232.53,7.601e-05,2]
[401086094,1767912775882,290.67,8.144e-05,2]
[401086095,1767912776784,348.8,8.687e-05,2]
[401086096,1767912848586,161.81,6.525e-05,2]
[401086097,1767912849243,242.71,7.069e-05,2]
[401086098,1767912849382,323.61,7.612e-05,2]
[401086099,1767912849762,404.52,8.156e-05,2]
[401086100,1767912850551,485.42,8.7e-05,2]
[401086142,1767912923711,200.01,6.556e-05,2]
[401086143,1767912924098,300.02,7.102e-05,2]
[401086144,1767912924666,400.03,7.648e-05,2]
[401086145,1767912925057,500.03,8.195e-05,2]
[401086146,1767912925513,600.04,8.741e-05,2]
[401086147,1767912999842,293.65,6.558e-05,2]
[401086148,1767913000248,440.47,7.105e-05,2]
[401086149,1767913000645,587.3,7.651e-05,2]
[401086150,1767913001195,734.12,8.198e-05,2]
[401086151,1767913001589,880.95,8.744e-05,2]
[401086164,1767913076348,260.08,7.305e-05,2]
[401086165,1767913076752,390.11,7.914e-05,2]
[401086166,1767913077320,520.15,8.523e-05,2]
[401086167,1767913153275,230.29,5.943e-05,2]
[401086168,1767913153680,345.43,6.438e-05,2]
[401086169,1767913154093,155.5,6.933e-05,2]
[401086170,1767913154118,305.07,6.933e-05,2]
[401086171,1767913154479,575.71,7.429e-05,2]
[401086172,1767913154873,690.86,7.924e-05,2]
[401086173,1767913155272,806.0,8.419e-05,2]
[401086174,1767913155672,921.14,8.914e-05,2]
[401086175,1767913228620,191.56,6.607e-05,2]
[401086176,1767913229006,255.41,7.115e-05,2]
[401086177,1767913229412,319.26,7.623e-05,2]
[401086178,1767913229806,383.11,8.132e-05,2]
[401086179,1767913230418,446.96,8.64e-05,2]
[401086182,1767913302467,174.14,7.19e-05,2]
[401086183,1767913302887,217.68,7.704e-05,2]
[401086184,1767913303279,261.21,8.218e-05,2]
[401086185,1767913303675,304.75,8.731e-05,2]
[401086186,1767913372832,156.73,7.602e-05,2]
[401086187,1767913373234,188.07,8.108e-05,2]
[401086188,1767913373815,219.42,8.615e-05,2]
[401086189,1767913456272,169.15,8.71e-05,2]
[401086190,1767913524598,154.08,8.417e-05,2]
[401086191,1767913525022,176.09,8.912e-05,2]
[401086192,1767913680738,239.65,4.995e-05,2]
[401086256,1767913831970,-552.0,9.409e-05,2]
[401086258,1767913831980,-297.14334599,9.448e-05,2]
[401086260,1767913831989,-160.28,9.768e-05,2]
[401086262,1767913831998,-999.0,0.00010959,2]
[401086263,1767913832008,-300.0,0.00011078,2]
[401086264,1767913832018,-1322.88347806,0.00011402,2]
[401086266,1767913832027,-350.62914827,0.00011448,2]
[401086268,1767913832037,-300.0,0.00012294,2]
[401086270,1767913832046,-165.58651575,0.00012294,2]
[401086272,1767913832055,-5259.55610024,0.00012295,2]
[401086274,1767913832066,-1423.00869472,0.00012295,2]
[401086305,1767913838116,-5368.55439877,0.00012295,2]
[401086307,1767913838130,-19283.52023384,0.00012295,2]
[401086309,1767913838177,-4869.11703458,0.00012295,2]
[401086310,1767913838187,-520.65118244,0.00012642,2]
[401086312,1767913838196,-848.83351685,0.00012642,2]
[401086313,1767913838206,-848.83351685,0.00012642,2]
[401086314,1767913838216,-848.83351685,0.00012642,2]
[401086315,1767913838225,-848.83351685,0.00012642,2]
[401086316,1767913838234,-848.83351685,0.00012642,2]
[401086317,1767913838243,-848.83351685,0.00012642,2]
[401086318,1767913838252,-848.83351685,0.00012642,2]
[401086319,1767913838261,-848.83351685,0.00012642,2]
[401086320,1767913838271,-848.83351685,0.00012642,2]
[401086321,1767913838280,-848.83351685,0.00012642,2]
[401086322,1767913838289,-848.83351685,0.00012642,2]
[401086323,1767913838298,-848.83351685,0.00012642,2]
[401086324,1767913838307,-848.83351685,0.00012642,2]
[401086325,1767913838317,-848.83351685,0.00012642,2]
[401086326,1767913838328,-848.83351685,0.00012642,2]
[401086327,1767913838338,-848.83351685,0.00012642,2]
[401086328,1767913838348,-1243.06922735,0.00012642,2]
[401086329,1767913838358,-1243.06922735,0.00012642,2]
[401086330,1767913838367,-1243.06922735,0.00012642,2]
[401086331,1767913838376,-1243.06922735,0.00012642,2]
[401086332,1767913838385,-1243.06922735,0.00012642,2]
[401086333,1767913838394,-1243.06922735,0.00012642,2]
[401086334,1767913838404,-1243.06922735,0.00012642,2]
[401086335,1767913838414,-1243.06922735,0.00012642,2]
[401086336,1767913838423,-1395.44545522,0.00012642,2]
[401086337,1767913838433,-1395.44545522,0.00012642,2]
[401086338,1767913838443,-1395.44545522,0.00012642,2]
[401086339,1767913838453,-200.0,0.00012643,2]
[401086340,1767913838462,-300.0,0.00012643,2]
[401086341,1767913838472,-300.0,0.00012643,2]
[401086342,1767913838481,-300.0,0.00012643,2]
[401086343,1767913838490,-300.0,0.00012643,2]
[401086344,1767913838500,-300.0,0.00012643,2]
[401086345,1767913838509,-300.0,0.00012643,2]
[401086346,1767913838518,-300.0,0.00012643,2]
[401086347,1767913838527,-300.0,0.00012643,2]
[401086348,1767913838537,-300.0,0.00012643,2]
[401086349,1767913838550,-300.0,0.00012643,2]
[401086350,1767913838559,-300.0,0.00012643,2]
[401086351,1767913838569,-300.0,0.00012643,2]
[401086352,1767913838579,-300.0,0.00012643,2]
[401086353,1767913838590,-300.0,0.00012643,2]
[401086354,1767913838599,-300.0,0.00012643,2]
[401086355,1767913838608,-600.0,0.00012643,2]
[401086356,1767913838619,-500.0,0.00013273,2]
[401086357,1767913838628,-500.0,0.00013273,2]
[401086358,1767913838638,-500.0,0.00013273,2]
[401086359,1767913838648,-647.44937683,0.00013273,2]
[401086360,1767913838657,-498.98190963,0.00013273,2]
[401086361,1767913838666,-500.0,0.00013273,2]
[401086362,1767913838675,-482.69771169,0.00013273,2]
[401086363,1767913838684,-151.97322479,0.00013273,2]
[401086364,1767913838693,-500.0,0.00013273,2]
[401086365,1767913838702,-500.0,0.00013273,2]
[401086366,1767913838711,-500.0,0.00013273,2]
[401086367,1767913838720,-500.0,0.00013273,2]
[401086368,1767913838729,-500.0,0.00013273,2]
[401086369,1767913838738,-500.0,0.00013273,2]
[401086370,1767913838748,-500.0,0.00013273,2]
[401086371,1767913838757,-500.0,0.00013273,2]
[401086372,1767913838767,-500.0,0.00013273,2]
[401086373,1767913838776,-500.0,0.00013273,2]
[401086374,1767913838785,-500.0,0.00013273,2]
[401086375,1767913838795,-283.80150252,0.00013273,2]
[401086376,1767913838804,-500.0,0.00013273,2]
[401086377,1767913838814,-500.0,0.00013273,2]
[401086378,1767913838828,-500.0,0.00013273,2]
[401086379,1767913838837,-500.0,0.00013273,2]
[401086380,1767913838846,-404.11495055,0.00013448,2]
[401086381,1767913838855,-420.0,0.00013492,2]
[401086382,1767913838865,-300.0,0.00013673,2]
[401086383,1767913838874,-54791.167404,0.00013699,2]
[401086384,1767913838883,-1000.0,0.00013699,2]
[401086385,1767913838893,-500.0,0.00013699,2]
[401086386,1767913838902,-500.0,0.00013699,2]
[401086387,1767913838912,-500.0,0.00013699,2]
[401086388,1767913838921,-500.0,0.00013699,2]
[401086389,1767913838931,-500.0,0.00013699,2]
[401086390,1767913838940,-453.5278863,0.00013699,2]
[401086391,1767913838950,-388.07347701,0.00013699,2]
[401086392,1767913838959,-500.0,0.00013699,2]
[401086393,1767913838969,-474.34002557,0.00013699,2]
[401086394,1767913838978,-500.0,0.00013699,2]
[401086395,1767913838988,-500.0,0.00013699,2]
[401086396,1767913838997,-500.0,0.00013699,2]
[401086397,1767913839007,-500.0,0.00013699,2]
[401086398,1767913839016,-385.64023148,0.00013699,2]
[401086399,1767913839026,-420.06493089,0.00013699,2]
[401086400,1767913839035,-500.0,0.00013699,2]
[401086401,1767913839045,-500.0,0.00013699,2]
[401086402,1767913839054,-443.89072638,0.00013699,2]
[401086403,1767913839063,-421.00515568,0.00013699,2]
[401086404,1767913839073,-500.0,0.00013699,2]
[401086405,1767913839082,-500.0,0.00013699,2]
[401086406,1767913839091,-500.0,0.00013699,2]
[401086407,1767913839100,-500.0,0.00013699,2]
[401086408,1767913839109,-500.81877837,0.00013699,2]
[401086409,1767913839118,-502.04480355,0.00013699,2]
[401086410,1767913839126,-500.54517436,0.00013699,2]
[401086411,1767913839135,-500.0,0.00013699,2]
[401086412,1767913839144,-500.0,0.00013699,2]
[401086413,1767913839153,-500.0,0.00013699,2]
[401086414,1767913839162,-316.43946894,0.00013699,2]
[401086415,1767913839171,-347.95522048,0.00013699,2]
[401086416,1767913839180,-500.0,0.00013699,2]
[401086417,1767913839189,-500.0,0.00013699,2]
[401086418,1767913839198,-500.0,0.00013699,2]
[401086419,1767913839207,-854.0529105,0.00013821,2]
[401086420,1767913839215,-500.0,0.00013821,2]
[401086421,1767913839224,-1000.0,0.00013821,2]
[401086422,1767913839233,-500.0,0.00013821,2]
[401086423,1767913839242,-1000.0,0.00013821,2]
[401086424,1767913839251,-630.69173533,0.00013821,2]
[401086425,1767913839260,-1000.0,0.00013821,2]
[401086426,1767913839270,-500.0,0.00013821,2]
[401086427,1767913839279,-1000.0,0.00013821,2]
[401086428,1767913839288,-1000.0,0.00013821,2]
[401086429,1767913839297,-500.0,0.00013821,2]
[401086430,1767913839305,-1000.0,0.00013821,2]
[401086431,1767913839314,-1000.0,0.00013821,2]
[401086432,1767913839322,-1000.0,0.00013821,2]
[401086433,1767913839331,-1000.0,0.00013821,2]
[401086434,1767913839340,-1000.0,0.00013821,2]
[401086435,1767913839349,-625.08025886,0.00013826,2]
[401086436,1767913839358,-720.0,0.00013908,2]
[401086437,1767913839368,-170.9785477,0.0001411,2]
[401086438,1767913839378,-559.21,0.00014147,2]
[401086439,1767913839387,-600.0,0.00014221,2]
[401086440,1767913839396,-1000.0,0.00014247,2]
[401086441,1767913839405,-338.23457806,0.00014247,2]
[401086442,1767913839414,-1000.0,0.00014247,2]
[401086443,1767913839423,-250.0,0.00014247,2]
[401086444,1767913839433,-1000.0,0.00014247,2]
[401086445,1767913839442,-1000.0,0.00014247,2]
[401086446,1767913839451,-1000.0,0.00014247,2]
[401086447,1767913839460,-1000.0,0.00014247,2]
[401086448,1767913839469,-1000.0,0.00014247,2]
[401086449,1767913839479,-909.51288327,0.00014247,2]
[401086450,1767913839487,-1000.0,0.00014247,2]
[401086451,1767913839497,-500.0,0.00014247,2]
[401086452,1767913839506,-1000.0,0.00014247,2]
[401086453,1767913839515,-1000.0,0.00014247,2]
[401086454,1767913839524,-500.0,0.00014247,2]
[401086455,1767913839533,-1001.0386878,0.00014247,2]
[401086456,1767913839544,-1190.210437,0.00014247,2]
[401086457,1767913839553,-1500.0,0.00014368,2]
[401086458,1767913839563,-869.1892099,0.00014368,2]
[401086459,1767913839572,-1500.0,0.00014368,2]
[401086460,1767913839583,-1500.0,0.00014368,2]
[401086461,1767913839596,-1500.0,0.00014368,2]
[401086462,1767913839606,-1500.0,0.00014368,2]
[401086463,1767913839616,-993.61283818,0.00014368,2]
[401086464,1767913839781,-1500.0,0.00014368,2]
[401086465,1767913839791,-1500.0,0.00014368,2]
[401086466,1767913839800,-1500.0,0.00014368,2]
[401086467,1767913839809,-5000.0,0.0001451,2]
[401086468,1767913839819,-900.0,0.00014768,2]
[401086469,1767913839828,-1046.66896035,0.00014795,2]
[401086470,1767913839837,-392.93732994,0.00014795,2]
[401086471,1767913839846,-1500.0,0.00014795,2]
[401086472,1767913839856,-1500.0,0.00014795,2]
[401086473,1767913839866,-1500.0,0.00014795,2]
[401086474,1767913839875,-1500.0,0.00014795,2]
[401086475,1767913839884,-1500.0,0.00014795,2]
[401086476,1767913839893,-1500.0,0.00014795,2]
[401086477,1767913839904,-1500.0,0.00014795,2]
[401086478,1767913839913,-587.0,0.00014807,2]
[401086479,1767913839922,-454.08900073,0.000149,2]
[401086480,1767913839932,-454.08900072,0.000149,2]
[401086481,1767913839941,-454.08900072,0.000149,2]
[401086482,1767913839950,-2002.92123591,0.00014916,2]
[401086483,1767913839960,-2000.0,0.00014916,2]
[401086484,1767913839969,-2000.0,0.00014916,2]
[401086485,1767913839978,-2000.0,0.00014916,2]
[401086486,1767913839987,-2000.0,0.00014916,2]
[401086487,1767913839996,-2000.0,0.00014916,2]
[401086488,1767913840006,-369.5151472,0.00014916,2]
[401086489,1767913840015,-2000.0,0.00014916,2]
[401086490,1767913840024,-100000.0,0.0001499,2]
[401086491,1767913840034,-800.0,0.00015068,2]
[401086492,1767913840043,-864.0,0.00015298,2]
[401086493,1767913840054,-1200.0,0.00015316,2]
[401086494,1767913840063,-2000.0,0.00015342,2]
[401086495,1767913840071,-2000.0,0.00015342,2]
[401086497,1767913840080,-1138.28627856,0.00015342,2]
[401086499,1767913840090,-2000.0,0.00015342,2]
[401086501,1767913840099,-2000.0,0.00015342,2]
[401086503,1767913840116,-2000.0,0.00015342,2]
[401086505,1767913840137,-2000.0,0.00015342,2]
[401086507,1767913840159,-1000.0,0.000154,2]
[401086509,1767913840169,-457.60075283,0.00015448,2]
[401086511,1767913840178,-2500.0,0.00015464,2]
[401086513,1767913840187,-2500.0,0.00015464,2]
[401086515,1767913840196,-2500.0,0.00015464,2]
[401086517,1767913840205,-2509.97635533,0.00015464,2]
[401086519,1767913840214,-396.00511375,0.00015464,2]
[401086521,1767913840223,-2500.0,0.00015464,2]
[401086523,1767913840232,-1500.0,0.00015864,2]
[401086525,1767913840242,-229.88637538,0.0001589,2]
[401086527,1767913840251,-2500.0,0.0001589,2]
[401086529,1767913840260,-1071.48096018,0.0001589,2]
[401086531,1767913840269,-2500.0,0.0001589,2]
[401086533,1767913840278,-2500.0,0.0001589,2]
[401086535,1767913840287,-2500.0,0.0001589,2]
[401086537,1767913840296,-3000.0,0.00016012,2]
[401086539,1767913840305,-2231.84139553,0.00016012,2]
[401086541,1767913840314,-532.8743507,0.00016012,2]
[401086543,1767913840323,-3000.0,0.00016012,2]
[401086545,1767913840332,-1600.0,0.00016164,2]
[401086547,1767913840341,-823.0,0.0001625,2]
[401086549,1767913840350,-1800.0,0.00016412,2]
[401086551,1767913840359,-500.0,0.00016438,2]
[401086553,1767913840368,-164.10892372,0.00016438,2]
[401086555,1767913840376,-526.70356569,0.00016438,2]
[401086556,1767913840385,-3000.0,0.00016438,2]
[401086558,1767913840394,-3000.0,0.00016438,2]
[401086560,1767913840403,-3000.0,0.00016438,2]
[401086562,1767913840412,-200.0,0.00016473,2]
[401086564,1767913840421,-1081.49344817,0.0001656,2]
[401086566,1767913840430,-3500.0,0.0001656,2]
[401086568,1767913840439,-1000.0,0.00016828,2]
[401086570,1767913840448,-2100.0,0.0001696,2]
[401086572,1767913840457,-3500.0,0.00016986,2]
[401086574,1767913840466,-3500.0,0.00016986,2]
[401086576,1767913840475,-3500.0,0.00016986,2]
[401086578,1767913840484,-4000.0,0.00017108,2]
[401086580,1767913840493,-2400.0,0.0001726,2]
[401086582,1767913840502,-5000.0,0.00017412,2]
[401086584,1767913840511,-511.08655511,0.00017448,2]
[401086586,1767913840520,-2400.0,0.00017508,2]
[401086588,1767913840529,-4000.0,0.00017534,2]
[401086590,1767913840540,-4000.0,0.00017534,2]
[401086592,1767913840551,-4000.0,0.00017534,2]
[401086594,1767913840560,-4500.0,0.00017656,2]
[401086596,1767913840569,-1152.0,0.00017834,2]
[401086598,1767913840579,-479.78804727,0.00017842,2]
[401086600,1767913840590,-2700.0,0.00018056,2]
[401086602,1767913840599,-4500.0,0.00018082,2]
[401086604,1767913840608,-4500.0,0.00018082,2]
[401086606,1767913840618,-1395.64095761,0.00018082,2]
[401086608,1767913840629,-5000.0,0.00018204,2]
[401086610,1767913840638,-1899.64931956,0.00018356,2]
[401086612,1767913840647,-1000.0,0.00018511,2]
[401086614,1767913840655,-244.0,0.00018511,2]
[401086616,1767913840665,-608.71132532,0.00018604,2]
[401086618,1767913840675,-3167.21136956,0.0001863,2]
[401086620,1767913840685,-5000.0,0.0001863,2]
[401086622,1767913840695,-1031.92126105,0.00018752,2]
[401086624,1767913840704,-5753.35238325,0.00018863,2]
[401086626,1767913840712,-230.19474322,0.00018959,3]
[401086628,1767913840722,-5500.0,0.00019178,2]
[401086630,1767913840731,-162.88,0.000192,2]
[401086632,1767913840740,-163.0,0.000192,2]
[401086634,1767913840749,-167.4,0.000192,2]
[401086636,1767913840758,-17902.14,0.000192,2]
[401086638,1767913840767,-564.57235739,0.00019448,2]
[401086640,1767913840776,-1296.0,0.00019572,2]
[401086642,1767913840785,-904.83,0.000196,2]
[401086644,1767913840794,-6000.0,0.00019726,2]
[401086646,1767913840803,-267.0,0.00019837,2]
[401086648,1767913840812,-1003.0,0.0002,2]
[401086650,1767913840821,-300.26582625,0.0002,2]
[401086652,1767913840830,-6500.0,0.00020274,2]
[401086654,1767913840840,-1000.0,0.00020362,2]
[401086656,1767913840849,-492.0,0.00020362,2]
[401086658,1767913840858,-419.6,0.00020401,2]
[401086660,1767913840867,-1041.66666667,0.00020546,2]
[401086662,1767913840876,-4505.53140952,0.00020822,2]
[401086664,1767913840885,-8649.19371835,0.00021126,2]
[401086666,1767913840895,-184.0,0.00021151,4]
[401086668,1767913840905,-618.05815967,0.00021448,2]
[401086670,1767913840914,-419.6,0.00021566,2]
[401086672,1767913840923,-300.0,0.00021644,5]
[401086674,1767913840932,-300.0,0.00021781,5]
[401086676,1767913840940,-300.0,0.00021863,5]
[401086678,1767913840949,-300.0,0.00021918,6]
[401086680,1767913840958,-300.0,0.00021918,5]
[401086682,1767913840968,-356.46,0.00021918,5]
[401086684,1767913840978,-151.17138734,0.00021918,2]
[401086686,1767913840987,-17902.14,0.00022,2]
[401086688,1767913840996,-518.09,0.00022,7]
[401086690,1767913841005,-2451.0153588,0.00022036,2]
[401086692,1767913841014,-300.0,0.00022192,5]
[401086693,1767913841023,-2451.0153588,0.00022242,2]
[401086696,1767913841032,-1000.0,0.00022398,10]
[401086698,1767913841042,-791.0,0.00022398,10]
[401086700,1767913841051,-444.77,0.000224,2]
[401086702,1767913841061,-2000.51544348,0.00022413,2]
[401086704,1767913841069,-3329.61738907,0.00022466,5]
[401086706,1767913841079,-300.0,0.00022466,5]
[401086708,1767913841087,-300.0,0.00022466,5]
[401086710,1767913841097,-300.0,0.00022466,5]
[401086712,1767913841106,-2451.0153588,0.00022571,2]
[401086714,1767913841114,-419.6,0.00022732,2]
[401086716,1767913841123,-2451.0153588,0.00022958,2]
[401086718,1767913841132,-300.0,0.00023014,5]
[401086720,1767913841141,-2451.0153588,0.00023276,2]
[401086722,1767913841150,-186.0,0.00023342,9]
[401086724,1767913841159,-554.95289818,0.00023404,15]
[401086726,1767913841168,-2451.0153588,0.00023428,2]
[401086728,1767913841177,-671.54396194,0.00023448,2]
[401086730,1767913841186,-300.0,0.00023562,5]
[401086732,1767913841195,-346.08802445,0.00023573,2]
[401086734,1767913841203,-904.83,0.000236,14]
[401086736,1767913841212,-518.09,0.000238,7]
[401086738,1767913841221,-2451.0153588,0.00023832,2]
[401086740,1767913841230,-346.08802445,0.00023856,17]
[401086742,1767913841239,-419.6,0.00023897,2]
[401086744,1767913841248,-17902.14,0.000239,2]
[401086746,1767913841257,-160.18626186,0.00024061,2]
[401086748,1767913841266,-2451.0153588,0.00024064,2]
[401086750,1767913841274,-8649.19371835,0.00024069,2]
[401086752,1767913841283,-172.18674375,0.00024135,2]
[401086754,1767913841292,-346.08802445,0.0002414,32]
[401086756,1767913841301,-162.88,0.000242,7]
[401086758,1767913841310,-163.0,0.000242,7]
[401086760,1767913841319,-2451.0153588,0.00024335,2]
[401086762,1767913841328,-554.95289818,0.00024342,16]
[401086763,1767913841338,-346.08802445,0.00024423,48]
[401086766,1767913841347,-2451.0153588,0.00024579,2]
[401086768,1767913841356,-1000.0,0.00024638,10]
[401086770,1767913841365,-1000.0,0.00024638,10]
[401086772,1767913841374,-346.08802445,0.00024707,63]
[401086774,1767913841383,-45040.7978301,0.000248,2]
[401086776,1767913841392,-2566.24195815,0.000248,2]
[401086778,1767913841402,-243.68363741,0.00024813,110]
[401086780,1767913841411,-2649.45869589,0.0002489,2]
[401086781,1767913841421,-310.474251,0.000249,7]
[401086783,1767913841430,-310.474251,0.000249,7]
[401086786,1767913841440,-310.474251,0.000249,7]
[401086787,1767913841452,-310.474251,0.000249,7]
[401086790,1767913841461,-1041.66666667,0.000249,7]
[401086791,1767913841470,-417.697268,0.000249,7]
[401086793,1767913841479,-417.697268,0.000249,7]
[401086795,1767913841488,-417.697268,0.000249,7]
[401086797,1767913841497,-417.697268,0.000249,7]
[401086800,1767913841506,-163.657676,0.000249,7]
[401086801,1767913841515,-163.657676,0.000249,7]
[401086804,1767913841524,-163.657676,0.000249,7]
[401086806,1767913841534,-163.657676,0.000249,7]
[401086807,1767913841545,-151.0,0.000249,7]
[401086809,1767913841554,-151.0,0.000249,7]
[401086811,1767913841564,-151.0,0.000249,7]
[401086813,1767913841573,-151.0,0.000249,7]
[401086815,1767913841583,-637582.872583,0.000249,2]
[401086817,1767913841594,-262.112916,0.000249,7]
[401086820,1767913841605,-605.87241,0.000249,7]
[401086821,1767913841615,-605.87241,0.000249,7]
[401086823,1767913841626,-605.87241,0.000249,7]
[401086826,1767913841636,-605.87241,0.000249,7]
[401086827,1767913841647,-151.58214,0.000249,7]
[401086829,1767913841656,-151.0,0.000249,7]
[401086831,1767913841667,-2451.0153588,0.00024923,2]
[401086833,1767913841678,-346.08802445,0.0002499,79]
[401086835,1767913841687,-419.6,0.00025062,2]
[401086837,1767913841699,-2451.0153588,0.00025092,2]
[401086839,1767913841711,-250.0,0.00025205,2]
[401086841,1767913841723,-346.08802445,0.00025274,94]
[401086844,1767913841732,-2649.45869589,0.00025275,2]
[401086845,1767913841741,-554.95289818,0.0002528,17]
[401086847,1767913841751,-151.0,0.00025285,2]
[401086849,1767913841761,-151.0,0.00025285,2]
[401086851,1767913841770,-151.0,0.00025285,2]
[401086853,1767913841779,-151.0,0.00025285,2]
[401086855,1767913841789,-151.0,0.00025285,2]
[401086857,1767913841800,-151.0,0.00025285,2]
[401086860,1767913841810,-2030.296672,0.00025285,2]
[401086862,1767913841819,-151.0,0.00025285,2]
[401086864,1767913841828,-151.0,0.00025285,2]
[401086866,1767913841838,-151.0,0.00025285,2]
[401086867,1767913841848,-151.0,0.00025285,2]
[401086869,1767913841857,-151.0,0.00025285,2]
[401086871,1767913841866,-151.0,0.00025285,2]
[401086873,1767913841875,-151.0,0.00025285,2]
[401086874,1767913841884,-151.0,0.00025285,2]
[401086875,1767913841893,-151.0,0.00025285,2]
[401086876,1767913841903,-151.0,0.00025285,2]
[401086877,1767913841911,-151.0,0.00025285,2]
[401086878,1767913841920,-151.0,0.00025285,2]
[401086879,1767913841929,-151.0,0.00025285,2]